[Event "Masterklassen 2025"]
[Site "Uppsala, Sweden"]
[Date "2025.07.02"]
[Round "5.12"]
[White "Wakeham, Daniel"]
[Black "Nygren, David"]
[Result "0-1"]
[TimeControl "90 min for 40 move + 30 min with an increment of 30 sec starting move 1"]
[WhiteFideId "1705482"]
[BlackFideId "1704761"]
[WhiteElo "2045"]
[BlackElo "2094"]

1. d4 {[%clk 01:30:50]} {[%emt 00:00:10]} e6 {[%clk 01:30:49]} {[%emt
00:00:12]} 2. Nf3 {[%clk 01:30:52]} {[%emt 00:00:27]} d5 {[%clk 01:30:11]}
{[%emt 00:01:09]} 3. e3 {[%clk 01:30:47]} {[%emt 00:00:35]} c5 {[%clk
01:29:51]} {[%emt 00:00:51]} 4. c3 {[%clk 01:30:45]} {[%emt 00:00:31]} Nc6
{[%clk 01:28:29]} {[%emt 00:01:51]} 5. Bd3 {[%clk 01:30:51]} {[%emt 00:00:24]}
Nf6 {[%clk 01:28:31]} {[%emt 00:00:28]} 6. O-O {[%clk 01:30:59]} {[%emt
00:00:23]} Bd6 {[%clk 01:27:59]} {[%emt 00:01:01]} 7. Nbd2 {[%clk 01:31:01]}
{[%emt 00:00:28]} cxd4 {[%clk 01:25:46]} {[%emt 00:02:43]} 8. exd4 {[%clk
01:31:02]} {[%emt 00:00:29]} O-O {[%clk 01:24:28]} {[%emt 00:01:48]} 9. Re1
{[%clk 01:31:08]} {[%emt 00:00:24]} Qc7 {[%clk 01:23:15]} {[%emt 00:01:44]} 10.
Qe2 {[%clk 01:25:27]} {[%emt 00:06:11]} Bf4 {[%clk 01:17:04]} {[%emt 00:06:41]}
11. g3 {[%clk 01:13:36]} {[%emt 00:12:20]} Bh6 {[%clk 01:13:36]} {[%emt
00:03:58]} 12. Nh4 {[%clk 01:05:26]} {[%emt 00:08:41]} Re8 {[%clk 01:02:49]}
{[%emt 00:11:16]} 13. f4 {[%clk 01:03:14]} {[%emt 00:02:42]} g6 {[%clk
00:49:05]} {[%emt 00:14:14]} 14. Nhf3 {[%clk 01:00:13]} {[%emt 00:03:31]} Bd7
{[%clk 00:46:56]} {[%emt 00:02:40]} 15. Ne5 {[%clk 00:59:28]} {[%emt 00:01:15]}
Nxe5 {[%clk 00:43:52]} {[%emt 00:03:33]} 16. fxe5 {[%clk 00:48:35]} {[%emt
00:11:24]} Nh5 {[%clk 00:42:32]} {[%emt 00:01:50]} 17. Rf1 {[%clk 00:37:14]}
{[%emt 00:11:51]} Rf8 {[%clk 00:41:04]} {[%emt 00:01:57]} 18. Nf3 {[%clk
00:30:12]} {[%emt 00:07:32]} Bxc1 {[%clk 00:38:41]} {[%emt 00:02:53]} 19. Raxc1
{[%clk 00:30:35]} {[%emt 00:00:07]} Rae8 {[%clk 00:32:32]} {[%emt 00:06:39]} 20.
Ng5 {[%clk 00:28:35]} {[%emt 00:02:31]} f5 {[%clk 00:29:38]} {[%emt 00:03:24]}
21. g4 {[%clk 00:24:43]} {[%emt 00:04:22]} Ng7 {[%clk 00:26:36]} {[%emt
00:03:31]} 22. h4 {[%clk 00:19:18]} {[%emt 00:05:56]} Qd8 {[%clk 00:23:38]}
{[%emt 00:03:27]} 23. gxf5 {[%clk 00:14:25]} {[%emt 00:05:24]} gxf5 {[%clk
00:22:00]} {[%emt 00:02:08]} 24. Kf2 {[%clk 00:12:01]} {[%emt 00:02:53]} h6
{[%clk 00:17:56]} {[%emt 00:04:34]} 25. Nf3 {[%clk 00:12:24]} {[%emt 00:00:08]}
Re7 {[%clk 00:17:47]} {[%emt 00:00:39]} 26. Qd2 {[%clk 00:11:59]} {[%emt
00:00:55]} Kh7 {[%clk 00:14:29]} {[%emt 00:03:47]} 27. Nh2 {[%clk 00:07:47]}
{[%emt 00:04:42]} Qe8 {[%clk 00:13:03]} {[%emt 00:01:57]} 28. Ng4 {[%clk
00:06:58]} {[%emt 00:01:19]} Qh5 {[%clk 00:13:03]} {[%emt 00:00:30]} 29. Rg1
{[%clk 00:04:35]} {[%emt 00:02:53]} Ne8 {[%clk 00:11:19]} {[%emt 00:02:14]} 30.
Rg3 {[%clk 00:03:23]} {[%emt 00:01:41]} Rg7 {[%clk 00:07:05]} {[%emt 00:04:44]}
31. Rcg1 {[%clk 00:03:44]} {[%emt 00:00:10]} Qxh4 {[%clk 00:06:23]} {[%emt
00:01:12]} 32. Kf1 {[%clk 00:03:23]} {[%emt 00:00:50]} Rfg8 {[%clk 00:04:21]}
{[%emt 00:02:33]} 33. Qf4 {[%clk 00:01:38]} {[%emt 00:02:15]} Kh8 {[%clk
00:03:47]} {[%emt 00:01:04]} 34. R1g2 {[%clk 00:00:41]} {[%emt 00:01:27]} Rxg4
{[%clk 00:02:10]} {[%emt 00:02:06]} 35. Rxg4 {[%clk 00:01:04]} {[%emt
00:00:07]} Rxg4 {[%clk 00:02:13]} {[%emt 00:00:26]} 36. Rxg4 {[%clk 00:01:27]}
{[%emt 00:00:09]} Qxg4 {[%clk 00:01:57]} {[%emt 00:00:46]} 37. Qxh6+ {[%clk
00:01:36]} {[%emt 00:00:21]} Kg8 {[%clk 00:02:21]} {[%emt 00:00:06]} 38. Be2
{[%clk 00:01:43]} {[%emt 00:00:23]} Qg7 {[%clk 00:01:37]} {[%emt 00:01:13]} 39.
Qh4 {[%clk 00:01:57]} {[%emt 00:00:16]} Qh7 {[%clk 00:00:53]} {[%emt 00:01:15]}
40. Qd8 {[%clk 00:02:12]} {[%emt 00:00:15]} Qf7 {[%clk 00:00:43]} {[%emt
00:00:40]} 41. Qb8 {[%clk 00:29:06]} {[%emt 00:03:36]} Bc6 {[%clk 00:29:27]}
{[%emt 00:01:45]} 42. Qxa7 {[%clk 00:29:25]} {[%emt 00:00:12]} f4 {[%clk
00:29:46]} {[%emt 00:00:10]} 43. Kf2 {[%clk 00:28:21]} {[%emt 00:01:34]} Qg6
{[%emt 00:05:13]} 44. b4 {[%clk 00:24:18]} Qg3+ {[%clk 00:29:43]} {[%emt
00:00:23]} 45. Kf1 {[%clk 00:24:41]} {[%emt 00:00:07]} f3 {[%clk 00:28:59]}
{[%emt 00:01:15]} 46. Bxf3 {[%clk 00:24:50]} {[%emt 00:00:20]} Qxf3+ {[%clk
00:29:23]} {[%emt 00:00:06]} 47. Kg1 {[%clk 00:25:09]} {[%emt 00:00:11]} Qg3+
{[%clk 00:29:19]} {[%emt 00:00:33]} 48. Kh1 {[%clk 00:25:23]} {[%emt 00:00:17]}
Qxc3 {[%clk 00:29:16]} {[%emt 00:00:34]} 49. b5 {[%clk 00:25:34]} {[%emt
00:00:19]} Qa1+ {[%clk 00:29:31]} {[%emt 00:00:15]} 50. Kh2 {[%clk 00:25:54]}
{[%emt 00:00:10]} Qb2+ {[%clk 00:29:50]} {[%emt 00:00:11]} 0-1

[Event "Masterklassen 2025"]
[Site "Uppsala, Sweden"]
[Date "2025.07.02"]
[Round "5.13"]
[White "Darnell, Anton"]
[Black "Malm, Simon"]
[Result "1-0"]
[TimeControl "90 min for 40 move + 30 min with an increment of 30 sec starting move 1"]
[WhiteFideId "1720244"]
[BlackFideId "1759825"]
[WhiteElo "2007"]
[BlackElo "2007"]

1. d4 {[%clk 01:30:58]} {[%emt 00:00:02]} d5 {[%clk 01:30:55]} {[%emt
00:00:05]} 2. c4 {[%clk 01:31:19]} {[%emt 00:00:09]} c6 {[%clk 01:31:20]}
{[%emt 00:00:05]} 3. Nf3 {[%clk 01:30:44]} {[%emt 00:01:05]} e6 {[%clk
01:31:38]} {[%emt 00:00:12]} 4. e3 {[%clk 01:28:00]} {[%emt 00:03:14]} Nf6
{[%clk 01:31:45]} {[%emt 00:00:24]} 5. Nbd2 {[%clk 01:28:02]} {[%emt 00:00:27]}
Nbd7 {[%clk 01:28:44]} {[%emt 00:03:32]} 6. Bd3 {[%clk 01:27:44]} {[%emt
00:00:46]} Be7 {[%clk 01:22:21]} {[%emt 00:06:53]} 7. O-O {[%clk 01:27:33]}
{[%emt 00:00:41]} O-O {[%clk 01:19:54]} {[%emt 00:02:57]} 8. e4 {[%clk
01:26:58]} {[%emt 00:01:06]} dxe4 {[%clk 01:14:05]} {[%emt 00:06:19]} 9. Nxe4
{[%clk 01:27:17]} {[%emt 00:00:11]} c5 {[%clk 01:08:16]} {[%emt 00:06:19]} 10.
Nxf6+ {[%clk 01:04:37]} {[%emt 00:23:10]} Bxf6 {[%clk 01:02:13]} {[%emt
00:06:32]} 11. Be3 {[%clk 01:00:29]} {[%emt 00:04:39]} cxd4 {[%clk 00:54:19]}
{[%emt 00:08:25]} 12. Nxd4 {[%clk 00:55:41]} {[%emt 00:05:17]} Ne5 {[%clk
00:51:33]} {[%emt 00:03:16]} 13. Bc2 {[%clk 00:52:23]} {[%emt 00:03:47]} Bd7
{[%clk 00:47:40]} {[%emt 00:04:24]} 14. Qe2 {[%clk 00:46:49]} {[%emt 00:06:04]}
Qc7 {[%clk 00:39:24]} {[%emt 00:08:46]} 15. Rac1 {[%clk 00:43:20]} {[%emt
00:03:59]} Nc6 {[%clk 00:35:00]} {[%emt 00:04:54]} 16. Nb5 {[%clk 00:39:59]}
{[%emt 00:03:50]} Qe5 {[%clk 00:33:35]} {[%emt 00:01:55]} 17. Qd3 {[%clk
00:39:31]} {[%emt 00:00:59]} Rfd8 {[%clk 00:29:29]} {[%emt 00:04:35]} 18. Qxh7+
{[%clk 00:37:33]} {[%emt 00:02:28]} Kf8 {[%clk 00:29:58]} {[%emt 00:00:01]} 19.
Rce1 {[%clk 00:27:58]} {[%emt 00:10:05]} g6 {[%clk 00:20:26]} {[%emt 00:10:03]}
20. Bh6+ {[%clk 00:26:26]} {[%emt 00:02:01]} Ke7 {[%clk 00:20:21]} {[%emt
00:00:35]} 21. Bxg6 {[%clk 00:24:21]} {[%emt 00:02:36]} Rf8 {[%clk 00:06:57]}
{[%emt 00:13:55]} 22. Rxe5 {[%clk 00:21:40]} Nxe5 {[%clk 00:07:14]} {[%emt
00:03:23]} 23. Bxf8+ {[%clk 00:19:47]} {[%emt 00:02:24]} Rxf8 {[%clk 00:07:42]}
{[%emt 00:00:02]} 24. Bb1 {[%clk 00:13:50]} {[%emt 00:06:26]} Nxc4 {[%clk
00:07:26]} {[%emt 00:00:47]} 25. Qe4 {[%clk 00:10:33]} {[%emt 00:03:46]} Bxb5
{[%clk 00:05:20]} {[%emt 00:02:37]} 26. Qxb7+ {[%clk 00:11:00]} {[%emt
00:00:02]} Bd7 {[%clk 00:05:38]} {[%emt 00:00:11]} 27. Qb4+ {[%clk 00:08:34]}
{[%emt 00:02:56]} Nd6 {[%clk 00:06:07]} {[%emt 00:00:01]} 28. Rd1 {[%clk
00:08:55]} {[%emt 00:00:09]} Be5 {[%clk 00:06:24]} {[%emt 00:00:14]} 29. f4
{[%clk 00:09:03]} {[%emt 00:00:22]} a5 {[%clk 00:06:46]} {[%emt 00:00:08]} 30.
Qd2 {[%clk 00:08:43]} {[%emt 00:00:49]} 1-0

[Event "Masterklassen 2025"]
[Site "Uppsala, Sweden"]
[Date "2025.07.02"]
[Round "5.14"]
[White "Lundberg, David"]
[Black "Stanley, Mikael"]
[Result "1-0"]
[TimeControl "90 min for 40 move + 30 min with an increment of 30 sec starting move 1"]
[WhiteFideId "1707051"]
[BlackFideId "1703730"]
[WhiteElo "2193"]
[BlackElo "2150"]

1. e4 {[%clk 01:30:51]} {[%emt 00:00:08]} c5 {[%clk 01:22:21]} {[%emt
00:08:40]} 2. Nf3 {[%clk 01:29:03]} {[%emt 00:02:18]} e6 {[%clk 01:22:19]}
{[%emt 00:00:32]} 3. d4 {[%clk 01:29:24]} {[%emt 00:00:09]} cxd4 {[%clk
01:22:46]} {[%emt 00:00:03]} 4. Nxd4 {[%clk 01:29:46]} {[%emt 00:00:06]} Nc6
{[%clk 01:23:03]} {[%emt 00:00:16]} 5. Nc3 {[%clk 01:30:01]} {[%emt 00:00:14]}
Qc7 {[%clk 01:23:02]} {[%emt 00:00:31]} 6. Be3 {[%clk 01:29:43]} {[%emt
00:00:48]} Nf6 {[%clk 01:21:45]} {[%emt 00:01:48]} 7. Qf3 {[%clk 01:22:04]}
{[%emt 00:08:07]} Bb4 {[%clk 01:17:24]} {[%emt 00:04:52]} 8. Ndb5 {[%clk
01:13:48]} {[%emt 00:08:46]} Qa5 {[%clk 01:05:16]} {[%emt 00:12:38]} 9. Bf4
{[%clk 00:54:11]} {[%emt 00:20:07]} O-O {[%clk 00:40:50]} {[%emt 00:24:57]} 10.
a3 {[%clk 00:38:37]} {[%emt 00:16:04]} a6 {[%clk 00:15:14]} {[%emt 00:26:05]}
11. Nd6 {[%clk 00:29:05]} {[%emt 00:10:01]} e5 {[%clk 00:15:11]} {[%emt
00:00:34]} 12. Nc4 {[%clk 00:27:24]} {[%emt 00:02:10]} Bxc3+ {[%clk 00:15:38]}
{[%emt 00:00:04]} 13. bxc3 {[%clk 00:26:40]} {[%emt 00:01:14]} Qc7 {[%clk
00:15:48]} {[%emt 00:00:21]} 14. Bg5 {[%clk 00:25:23]} {[%emt 00:01:45]} Na5
{[%clk 00:07:52]} {[%emt 00:08:27]} 15. Bxf6 {[%clk 00:20:50]} {[%emt
00:05:03]} gxf6 {[%clk 00:08:21]} {[%emt 00:00:01]} 16. Nxa5 {[%clk 00:16:38]}
{[%emt 00:04:42]} Qxa5 {[%clk 00:08:50]} 17. Bc4 {[%clk 00:16:55]} {[%emt
00:00:13]} f5 {[%clk 00:08:04]} {[%emt 00:01:16]} 18. O-O {[%clk 00:12:30]}
{[%emt 00:04:54]} fxe4 {[%clk 00:07:39]} {[%emt 00:00:56]} 19. Qxe4 {[%clk
00:11:46]} {[%emt 00:01:14]} Qxc3 {[%clk 00:05:48]} {[%emt 00:02:21]} 20. Rad1
{[%clk 00:09:55]} {[%emt 00:02:20]} d5 {[%clk 00:05:33]} {[%emt 00:00:46]} 21.
Bxd5 {[%clk 00:09:13]} {[%emt 00:01:12]} Kh8 {[%clk 00:05:44]} {[%emt
00:00:20]} 22. Rd3 {[%clk 00:07:14]} {[%emt 00:02:28]} Qc7 {[%clk 00:06:13]}
{[%emt 00:00:01]} 23. f4 {[%clk 00:05:39]} {[%emt 00:02:04]} exf4 {[%clk
00:05:46]} {[%emt 00:00:57]} 24. Qd4+ {[%clk 00:05:23]} {[%emt 00:00:46]} f6
{[%clk 00:06:12]} {[%emt 00:00:05]} 25. Rxf4 {[%clk 00:05:25]} {[%emt
00:00:27]} Qg7 {[%clk 00:06:10]} {[%emt 00:00:33]} 26. Rg3 {[%clk 00:05:08]}
{[%emt 00:00:46]} Qe7 {[%clk 00:06:20]} {[%emt 00:00:21]} 27. Rxf6 {[%clk
00:04:47]} {[%emt 00:00:51]} 1-0

[Event "Masterklassen 2025"]
[Site "Uppsala, Sweden"]
[Date "2025.07.02"]
[Round "5.15"]
[White "Sergelenbaatar, Khaschuluu"]
[Black "Ask, Josef"]
[Result "0-1"]
[TimeControl "90 min for 40 move + 30 min with an increment of 30 sec starting move 1"]
[BlackTitle "FM"]
[WhiteFideId "4920929"]
[BlackFideId "1704583"]
[WhiteElo "1996"]
[BlackElo "2121"]

1. e4 {[%clk 01:30:42]} {[%emt 00:00:04]} Nc6 {[%clk 01:30:55]} {[%emt
00:00:20]} 2. Nf3 {[%clk 01:30:59]} {[%emt 00:00:12]} g6 {[%clk 01:30:39]}
{[%emt 00:00:46]} 3. d4 {[%clk 01:30:59]} {[%emt 00:00:30]} Bg7 {[%clk
01:30:34]} {[%emt 00:00:33]} 4. Nc3 {[%clk 01:31:10]} {[%emt 00:00:21]} d6
{[%clk 01:30:28]} {[%emt 00:00:37]} 5. Bc4 {[%clk 01:25:47]} {[%emt 00:05:53]}
Nf6 {[%clk 01:29:51]} {[%emt 00:01:07]} 6. O-O {[%clk 01:25:49]} {[%emt
00:00:28]} Bg4 {[%clk 01:29:25]} {[%emt 00:00:55]} 7. Be3 {[%clk 01:26:02]}
{[%emt 00:00:16]} O-O {[%clk 01:28:51]} {[%emt 00:01:05]} 8. h3 {[%clk
01:20:28]} {[%emt 00:06:04]} Bxf3 {[%clk 01:27:54]} {[%emt 00:01:27]} 9. Qxf3
{[%clk 01:08:09]} {[%emt 00:12:48]} e5 {[%clk 01:28:07]} {[%emt 00:00:18]} 10.
dxe5 {[%clk 01:08:28]} {[%emt 00:00:11]} Nxe5 {[%clk 01:28:11]} {[%emt
00:00:27]} 11. Qe2 {[%clk 01:08:52]} {[%emt 00:00:05]} Nxc4 {[%clk 01:25:40]}
{[%emt 00:03:01]} 12. Qxc4 {[%clk 01:08:12]} {[%emt 00:01:10]} Re8 {[%clk
01:24:54]} {[%emt 00:01:15]} 13. Rad1 {[%clk 01:05:16]} {[%emt 00:03:26]} Qe7
{[%clk 01:22:27]} {[%emt 00:02:58]} 14. f3 {[%clk 00:40:04]} {[%emt 00:25:42]}
c6 {[%clk 01:21:30]} {[%emt 00:01:27]} 15. Rfe1 {[%clk 00:37:05]} {[%emt
00:03:29]} Rad8 {[%clk 01:14:34]} {[%emt 00:07:26]} 16. a4 {[%clk 00:30:51]}
{[%emt 00:06:45]} Nh5 {[%clk 01:10:01]} {[%emt 00:05:03]} 17. a5 {[%clk
00:29:46]} {[%emt 00:01:34]} Be5 {[%clk 01:09:18]} {[%emt 00:01:13]} 18. Ne2
{[%clk 00:25:12]} {[%emt 00:05:04]} Qh4 {[%clk 01:06:07]} {[%emt 00:03:41]} 19.
a6 {[%clk 00:22:32]} {[%emt 00:03:11]} d5 {[%clk 01:00:21]} {[%emt 00:06:16]}
20. Qd3 {[%clk 00:17:27]} {[%emt 00:05:35]} b6 {[%clk 00:53:11]} {[%emt
00:07:39]} 21. Bf2 {[%clk 00:17:25]} {[%emt 00:00:32]} Qf6 {[%clk 00:40:07]}
{[%emt 00:13:35]} 22. exd5 {[%clk 00:15:49]} {[%emt 00:02:05]} Rxd5 {[%clk
00:39:39]} {[%emt 00:00:58]} 23. Qc4 {[%clk 00:16:08]} {[%emt 00:00:12]} b5
{[%clk 00:36:32]} {[%emt 00:03:36]} 24. Qg4 {[%clk 00:16:12]} {[%emt 00:00:26]}
Qd6 {[%clk 00:34:27]} {[%emt 00:02:35]} 25. Nc3 {[%clk 00:13:38]} {[%emt
00:03:05]} Bh2+ {[%clk 00:28:53]} {[%emt 00:06:04]} 26. Kh1 {[%clk 00:14:00]}
{[%emt 00:00:07]} Rxe1+ {[%clk 00:28:56]} {[%emt 00:00:27]} 27. Rxe1 {[%clk
00:14:23]} {[%emt 00:00:07]} f5 {[%clk 00:22:17]} {[%emt 00:07:09]} 28. Qh4
{[%clk 00:12:10]} {[%emt 00:02:44]} Rd2 {[%clk 00:21:08]} {[%emt 00:01:39]} 29.
Qe7 {[%clk 00:06:06]} {[%emt 00:06:33]} Rxf2 {[%clk 00:09:28]} {[%emt
00:12:10]} 30. Qe8+ {[%clk 00:06:31]} {[%emt 00:00:06]} Kg7 {[%clk 00:08:09]}
{[%emt 00:01:49]} 31. Re7+ {[%clk 00:06:57]} {[%emt 00:00:03]} Kh6 {[%clk
00:08:36]} {[%emt 00:00:03]} 32. Qf8+ {[%clk 00:07:21]} {[%emt 00:00:05]} Kg5
{[%clk 00:09:03]} {[%emt 00:00:04]} 33. Ne4+ {[%clk 00:07:14]} {[%emt
00:00:38]} fxe4 {[%clk 00:09:18]} {[%emt 00:00:15]} 34. h4+ {[%clk 00:07:40]}
{[%emt 00:00:03]} Kxh4 {[%clk 00:09:15]} {[%emt 00:00:34]} 35. Rxe4+ {[%clk
00:08:05]} {[%emt 00:00:05]} Bf4 {[%clk 00:07:44]} {[%emt 00:02:01]} 36. Rxf4+
{[%clk 00:07:22]} {[%emt 00:01:12]} Qxf4 {[%clk 00:07:54]} {[%emt 00:00:20]} 37.
Qe7+ {[%clk 00:07:24]} {[%emt 00:00:28]} Kg3 {[%clk 00:06:51]} {[%emt
00:01:33]} 38. Qe1 {[%clk 00:07:47]} {[%emt 00:00:06]} Qh4+ {[%clk 00:06:57]}
{[%emt 00:00:25]} 39. Kg1 {[%clk 00:08:09]} {[%emt 00:00:08]} Qh2# {[%emt
00:00:04]} 0-1

[Event "Masterklassen 2025"]
[Site "Uppsala, Sweden"]
[Date "2025.07.02"]
[Round "5.16"]
[White "Bjorkman, Filip"]
[Black "Schriever-Abeln, Marius"]
[Result "1/2-1/2"]
[TimeControl "90 min for 40 move + 30 min with an increment of 30 sec starting move 1"]
[WhiteFideId "1734970"]
[BlackFideId "1752650"]
[WhiteElo "2113"]
[BlackElo "2052"]

1. e4 {[%clk 01:30:48]} {[%emt 00:00:11]} c5 {[%clk 01:30:55]} {[%emt
00:00:06]} 2. Nf3 {[%clk 01:31:13]} {[%emt 00:00:04]} d6 {[%clk 01:31:17]}
{[%emt 00:00:09]} 3. d4 {[%clk 01:31:38]} {[%emt 00:00:05]} cxd4 {[%clk
01:31:43]} {[%emt 00:00:03]} 4. Nxd4 {[%clk 01:32:02]} {[%emt 00:00:06]} Nf6
{[%clk 01:32:06]} {[%emt 00:00:07]} 5. Nc3 {[%clk 01:32:28]} {[%emt 00:00:04]}
a6 {[%clk 01:32:33]} {[%emt 00:00:04]} 6. f3 {[%clk 01:32:51]} {[%emt
00:00:07]} e5 {[%clk 01:32:51]} {[%emt 00:00:13]} 7. Nb3 {[%clk 01:33:15]}
{[%emt 00:00:05]} Be6 {[%clk 01:32:59]} {[%emt 00:00:22]} 8. Be3 {[%clk
01:33:39]} {[%emt 00:00:06]} Be7 {[%clk 01:33:17]} {[%emt 00:00:12]} 9. Qd2
{[%clk 01:33:50]} {[%emt 00:00:19]} h5 {[%clk 01:33:02]} {[%emt 00:00:45]} 10.
Nd5 {[%clk 01:34:13]} {[%emt 00:00:06]} Nxd5 {[%clk 01:32:07]} {[%emt
00:01:27]} 11. exd5 {[%clk 01:34:35]} {[%emt 00:00:07]} Bf5 {[%clk 01:32:29]}
{[%emt 00:00:09]} 12. Bd3 {[%clk 01:34:58]} {[%emt 00:00:05]} Bxd3 {[%clk
01:31:54]} {[%emt 00:01:06]} 13. Qxd3 {[%clk 01:35:26]} {[%emt 00:00:02]} Nd7
{[%clk 01:30:34]} {[%emt 00:01:50]} 14. O-O-O {[%clk 01:35:46]} {[%emt
00:00:09]} Bg5 {[%clk 01:27:12]} {[%emt 00:03:53]} 15. Kb1 {[%clk 01:35:52]}
{[%emt 00:00:23]} Rc8 {[%clk 01:22:33]} {[%emt 00:05:09]} 16. Rhe1 {[%clk
01:34:13]} {[%emt 00:02:09]} O-O {[%clk 01:20:04]} {[%emt 00:03:00]} 17. Qf5
{[%clk 01:33:58]} {[%emt 00:00:44]} Bxe3 {[%clk 01:18:13]} {[%emt 00:02:22]} 18.
Rxe3 {[%clk 01:34:20]} {[%emt 00:00:07]} g6 {[%clk 01:17:34]} {[%emt 00:01:10]}
19. Qd3 {[%clk 01:33:30]} {[%emt 00:01:19]} b5 {[%clk 01:14:45]} {[%emt
00:03:19]} 20. c3 {[%clk 01:31:21]} {[%emt 00:02:39]} Nc5 {[%clk 01:08:51]}
{[%emt 00:06:25]} 21. Nxc5 {[%clk 01:31:41]} {[%emt 00:00:10]} Rxc5 {[%clk
01:09:11]} {[%emt 00:00:10]} 22. f4 {[%clk 01:32:04]} {[%emt 00:00:07]} exf4
{[%clk 01:03:36]} {[%emt 00:06:05]} 23. Re4 {[%clk 01:32:14]} {[%emt 00:00:19]}
Qg5 {[%clk 01:01:30]} {[%emt 00:02:36]} 24. Qd2 {[%clk 01:26:46]} {[%emt
00:05:58]} Qf5 {[%clk 00:55:25]} {[%emt 00:06:36]} 25. Qxf4 {[%clk 01:26:53]}
{[%emt 00:00:22]} Rxd5 {[%clk 00:54:18]} {[%emt 00:01:38]} 26. Rxd5 {[%clk
01:26:11]} {[%emt 00:01:12]} Qxd5 {[%clk 00:54:32]} {[%emt 00:00:16]} 27. a3
{[%clk 01:22:16]} {[%emt 00:04:24]} Qc6 {[%clk 00:36:14]} {[%emt 00:18:50]} 28.
g4 {[%clk 01:19:59]} {[%emt 00:02:46]} hxg4 {[%clk 00:34:43]} {[%emt 00:02:01]}
29. Qxg4 {[%clk 01:20:22]} {[%emt 00:00:07]} d5 {[%clk 00:33:45]} {[%emt
00:01:29]} 30. Rd4 {[%clk 01:20:06]} {[%emt 00:00:45]} Re8 {[%clk 00:32:04]}
{[%emt 00:02:11]} 31. Qg5 {[%clk 01:20:03]} {[%emt 00:00:31]} Re1+ {[%clk
00:28:11]} {[%emt 00:04:24]} 32. Ka2 {[%clk 01:20:13]} {[%emt 00:00:20]} Re2
{[%clk 00:25:27]} {[%emt 00:03:15]} 33. Qd8+ {[%clk 01:14:55]} {[%emt
00:05:48]} Re8 {[%clk 00:22:02]} {[%emt 00:03:55]} 34. Qxd5 {[%clk 01:15:18]}
{[%emt 00:00:07]} Qxd5+ {[%clk 00:21:22]} {[%emt 00:01:10]} 35. Rxd5 {[%clk
01:15:46]} {[%emt 00:00:02]} Re6 {[%clk 00:20:15]} {[%emt 00:01:37]} 36. Kb3
{[%clk 01:16:08]} {[%emt 00:00:08]} f5 {[%clk 00:20:07]} {[%emt 00:00:38]} 37.
h4 {[%clk 01:14:26]} {[%emt 00:02:12]} f4 {[%clk 00:17:47]} {[%emt 00:02:50]}
38. Kc2 {[%clk 01:14:48]} {[%emt 00:00:07]} Kg7 {[%clk 00:08:19]} {[%emt
00:09:58]} 39. h5 {[%clk 01:10:41]} {[%emt 00:04:38]} gxh5 {[%clk 00:04:52]}
{[%emt 00:03:58]} 40. Rxh5 {[%clk 01:11:08]} {[%emt 00:00:02]} Re2+ {[%clk
00:04:44]} {[%emt 00:00:38]} 41. Kd3 {[%clk 01:11:16]} {[%emt 00:00:23]}
1/2-1/2

[Event "Masterklassen 2025"]
[Site "Uppsala, Sweden"]
[Date "2025.07.03"]
[Round "6.1"]
[White "Cederstam, Carl"]
[Black "Mashhadi, Peyman"]
[Result "1/2-1/2"]
[TimeControl "90 min for 40 move + 30 min with an increment of 30 sec starting move 1"]
[WhiteTitle "FM"]
[WhiteFideId "1713329"]
[BlackFideId "1768581"]
[WhiteElo "2316"]
[BlackElo "2132"]

1. d4 {[%clk 01:30:21]} {[%emt 00:00:39]} g6 {[%clk 01:30:26]} {[%emt
00:00:35]} 2. e4 {[%clk 01:29:52]} {[%emt 00:00:59]} Bg7 {[%clk 01:30:44]}
{[%emt 00:00:12]} 3. Nf3 {[%clk 01:30:04]} {[%emt 00:00:18]} d6 {[%clk
01:31:01]} {[%emt 00:00:14]} 4. Be2 {[%clk 01:30:09]} {[%emt 00:00:24]} Nf6
{[%clk 01:30:39]} {[%emt 00:00:51]} 5. Nc3 {[%clk 01:30:31]} {[%emt 00:00:09]}
O-O {[%clk 01:29:57]} {[%emt 00:01:12]} 6. O-O {[%clk 01:30:52]} {[%emt
00:00:08]} c6 {[%clk 01:27:49]} {[%emt 00:02:39]} 7. a4 {[%clk 01:29:29]}
{[%emt 00:01:53]} Qc7 {[%clk 01:24:39]} {[%emt 00:03:39]} 8. h3 {[%clk
01:27:37]} {[%emt 00:02:22]} e5 {[%clk 01:22:37]} {[%emt 00:02:33]} 9. dxe5
{[%clk 01:21:24]} {[%emt 00:06:44]} dxe5 {[%clk 01:22:52]} {[%emt 00:00:13]} 10.
Bc4 {[%clk 01:13:47]} {[%emt 00:08:07]} Nh5 {[%clk 01:20:36]} {[%emt 00:02:47]}
11. Ne2 {[%clk 01:08:06]} {[%emt 00:06:11]} Nd7 {[%clk 01:16:18]} {[%emt
00:04:48]} 12. Ng3 {[%clk 00:59:41]} {[%emt 00:08:55]} Nf4 {[%clk 01:13:58]}
{[%emt 00:02:51]} 13. Ne2 {[%clk 00:55:17]} {[%emt 00:04:53]} Nh5 {[%clk
01:10:00]} {[%emt 00:04:28]} 14. Ng3 {[%clk 00:55:22]} {[%emt 00:00:25]} Nf4
{[%clk 01:08:56]} {[%emt 00:01:33]} 15. Ne2 {[%clk 00:55:48]} {[%emt 00:00:05]}
Nh5 {[%clk 01:08:37]} {[%emt 00:00:49]} 1/2-1/2